fUSD/lending_fUSD_20260105
["ID","MTS","AMOUNT","RATE_DAILY","PERIOD"]
[400478171,1767630773361,500.0,0.00032876,120]
[400478172,1767630773609,500.0,0.00032876,120]
[400478173,1767630773851,500.0,0.00032876,120]
[400478174,1767630774109,500.0,0.00032876,120]
[400478175,1767630774344,500.0,0.00032876,120]
[400478176,1767630774614,596.73936116,0.00032876,120]
[400478177,1767630775444,500.0,0.00032876,120]
[400478178,1767630775681,500.0,0.00032876,120]
[400478179,1767630775916,500.0,0.00032876,120]
[400478180,1767630775990,500.0,0.00032876,120]
[400478181,1767630776227,500.0,0.00032876,120]
[400478182,1767630776499,156.32768606,0.00032876,120]
[400478183,1767630776610,500.0,0.00032876,120]
[400478184,1767630776876,500.0,0.00032876,120]
[400478185,1767630777121,500.0,0.00032876,120]
[400478186,1767630777372,500.0,0.00032876,120]
[400478187,1767630777647,500.0,0.00032876,120]
[400478188,1767630777885,500.0,0.00032876,120]
[400478189,1767630778588,645.76467148,0.00032876,120]
[400478190,1767630778657,422.79973911,0.00032876,120]
[400478191,1767630780205,500.0,0.00032876,120]
[400478192,1767630780461,228.80619639,0.00032876,120]
[400478193,1767630783491,500.0,0.00032876,120]
[400478194,1767630783729,500.0,0.00032876,120]
[400478195,1767630783990,500.0,0.00032876,120]
[400478196,1767630784062,428.64204913,0.00032876,120]
[400478197,1767630784574,500.0,0.00032876,120]
[400478198,1767630784649,500.0,0.00032876,120]
[400478199,1767630784859,500.0,0.00032876,120]
[400478200,1767630784942,510.26684246,0.00032876,120]
[400478201,1767630786151,511.71276802,0.00032876,120]
[400478202,1767630786326,262.90316272,0.00032876,120]
[400478203,1767630786839,500.0,0.00032876,120]
[400478204,1767630787088,214.99284536,0.00032876,120]
[400478205,1767630787761,500.0,0.00032876,120]
[400478206,1767630787936,500.0,0.00032876,120]
[400478207,1767630788023,500.0,0.00032876,120]
[400478208,1767630788188,500.0,0.00032876,120]
[400478209,1767630788296,500.0,0.00032876,120]
[400478210,1767630788647,500.0,0.00032876,120]
[400478211,1767630788725,500.0,0.00032876,120]
[400478212,1767630788802,500.0,0.00032876,120]
[400478213,1767630788872,500.0,0.00032876,120]
[400478214,1767630789055,500.0,0.00032876,120]
[400478215,1767630789274,500.0,0.00032876,120]
[400478216,1767630789353,517.98961844,0.00032876,120]
[400478217,1767630789507,389.41558553,0.00032876,120]
[400478218,1767630789938,532.26680834,0.00032876,120]
[400478219,1767630791396,448.37972501,0.00032876,120]
[400478220,1767630791513,500.0,0.00032876,120]
[400478221,1767630791754,500.0,0.00032876,120]
[400478222,1767630791825,522.23292745,0.00032876,120]
[400478223,1767630791989,195.65571391,0.00032876,120]
[400478224,1767630793700,500.0,0.00032876,120]
[400478225,1767630793778,500.0,0.00032876,120]
[400478226,1767630793950,500.0,0.00032876,120]
[400478227,1767630794161,500.0,0.00032876,120]
[400478228,1767630794403,520.12425625,0.00032876,120]
[400478229,1767630794784,500.0,0.00032876,120]
[400478230,1767630795016,500.0,0.00032876,120]
[400478231,1767630795195,500.0,0.00032876,120]
[400478232,1767630795285,500.0,0.00032876,120]
[400478233,1767630795420,500.0,0.00032876,120]
[400478234,1767630795487,500.0,0.00032876,120]
[400478235,1767630795602,500.0,0.00032876,120]
[400478236,1767630795693,500.0,0.00032876,120]
[400478237,1767630795759,500.0,0.00032876,120]
[400478238,1767630795827,500.0,0.00032876,120]
[400478239,1767630795951,500.0,0.00032876,120]
[400478240,1767630796017,500.0,0.00032876,120]
[400478241,1767630796104,472.93476069,0.00032876,120]
[400478242,1767630796189,500.0,0.00032876,120]
[400478243,1767630796259,500.0,0.00032876,120]
[400478244,1767630796418,500.0,0.00032876,120]
[400478245,1767630796505,500.0,0.00032876,120]
[400478246,1767630796675,372.09362599,0.00032876,120]
[400478247,1767630796745,632.1,0.00032876,120]
[400478248,1767630797185,416.71100653,0.00032876,120]
[400478249,1767630797591,255.74852746,0.00032876,120]
[400478250,1767630799044,500.0,0.00032876,120]
[400478251,1767630799143,205.06256965,0.00032876,120]
[400478252,1767630799498,500.0,0.00032876,120]
[400478253,1767630799983,500.0,0.00032876,120]
[400478254,1767630800074,500.0,0.00032876,120]
[400478255,1767630800238,500.0,0.00032876,120]
[400478256,1767630800735,486.0799124,0.00032876,120]
[400478257,1767630802828,500.0,0.00032876,120]
[400478258,1767630803077,167.6679836,0.00032876,120]
[400478259,1767630804330,547.65910964,0.00032876,120]
[400478260,1767630805451,500.0,0.00032876,120]
[400478261,1767630805683,500.0,0.00032876,120]
[400478262,1767630805938,500.0,0.00032876,120]
[400478263,1767630806174,257.89929484,0.00032876,120]
[400478264,1767630808067,500.0,0.00032876,120]
[400478265,1767630809645,500.0,0.00032876,120]
[400478266,1767630809894,500.0,0.00032876,120]
[400478267,1767630810007,326.2387789,0.00032876,120]
[400478268,1767630810150,500.0,0.00032876,120]
[400478269,1767630810389,500.0,0.00032876,120]
[400478270,1767630814885,500.0,0.00032876,120]
[400478271,1767630814999,500.0,0.00032876,120]
[400478272,1767630815114,500.0,0.00032876,120]
[400478273,1767630815367,500.0,0.00032876,120]
[400478274,1767630815439,500.0,0.00032876,120]
[400478275,1767630815642,633.56982561,0.00032876,120]
[400478276,1767630815717,500.0,0.00032876,120]
[400478277,1767630815902,500.0,0.00032876,120]
[400478278,1767630816171,500.0,0.00032876,120]
[400478279,1767630816418,500.0,0.00032876,120]
[400478280,1767630816862,500.0,0.00032876,120]
[400478281,1767630816938,500.0,0.00032876,120]
[400478282,1767630817017,500.0,0.00032876,120]
[400478283,1767630817110,271.35840299,0.00032876,120]
[400478284,1767630817180,500.0,0.00032876,120]
[400478285,1767630817251,500.0,0.00032876,120]
[400478286,1767630817387,500.0,0.00032876,120]
[400478287,1767630817457,500.0,0.00032876,120]
[400478288,1767630817532,500.0,0.00032876,120]
[400478289,1767630817626,406.67471008,0.00032876,120]
[400478290,1767630817772,500.0,0.00032876,120]
[400478291,1767630817845,500.0,0.00032876,120]
[400478292,1767630818018,500.0,0.00032876,120]
[400478293,1767630818099,500.0,0.00032876,120]
[400478294,1767630818267,500.0,0.00032876,120]
[400478295,1767630818892,182.35310878,0.00032876,120]
[400478296,1767630819118,500.0,0.00032876,120]
[400478297,1767630819484,500.0,0.00032876,120]
[400478298,1767630819625,500.0,0.00032876,120]
[400478299,1767630819859,500.0,0.00032876,120]
[400478300,1767630820081,500.0,0.00032876,120]
[400478301,1767630820160,500.0,0.00032876,120]
[400478302,1767630820361,500.0,0.00032876,120]
[400478303,1767630820602,500.0,0.00032876,120]
[400478304,1767630820830,500.0,0.00032876,120]
[400478305,1767630822969,500.0,0.00032876,120]
[400478306,1767630823202,500.0,0.00032876,120]
[400478307,1767630823441,500.0,0.00032876,120]
[400478308,1767630823684,414.91714376,0.00032876,120]
[400478309,1767630826002,500.0,0.00032876,120]
[400478310,1767630826264,500.0,0.00032876,120]
[400478311,1767630826503,500.0,0.00032876,120]
[400478312,1767630826742,500.0,0.00032876,120]
[400478313,1767630827055,500.0,0.00032876,120]
[400478314,1767630827248,465.93710799,0.00032876,120]
[400478315,1767630827322,500.0,0.00032876,120]
[400478316,1767630827560,530.1275924,0.00032876,120]
[400478317,1767630827636,485.93118277,0.00032876,120]
[400478318,1767630829206,413.19690835,0.00032876,120]
[400478319,1767630829368,179.96054714,0.00032876,120]
[400478320,1767630830303,500.0,0.00032876,120]
[400478321,1767630832609,500.0,0.00032876,120]
[400478322,1767630832683,435.8273062,0.00032876,120]
[400478323,1767630832846,500.0,0.00032876,120]
[400478324,1767630833085,500.0,0.00032876,120]
[400478325,1767630833319,398.18381667,0.00032876,120]
[400478326,1767630837161,597.00200332,0.00032876,120]
[400478327,1767630838263,500.0,0.00032876,120]
[400478328,1767630838666,500.0,0.00032876,120]
[400478329,1767630838916,249.08978302,0.00032876,120]
[400478330,1767630842562,500.0,0.00032876,120]
[400478331,1767630842826,500.0,0.00032876,120]
[400478332,1767630843096,500.0,0.00032876,120]
[400478333,1767630843372,497.5342283,0.00032876,120]
[400478334,1767630843556,500.0,0.00032876,120]
[400478335,1767630843816,500.0,0.00032876,120]
[400478336,1767630844062,500.0,0.00032876,120]
[400478337,1767630844706,500.0,0.00032876,120]
[400478338,1767630844972,500.0,0.00032876,120]
[400478339,1767630845247,443.12217549,0.00032876,120]
[400478340,1767630846042,500.0,0.00032876,120]
[400478341,1767630846168,500.0,0.00032876,120]
[400478342,1767630846272,500.0,0.00032876,120]
[400478343,1767630846494,544.2058691,0.00032876,120]
[400478344,1767630847028,392.04563704,0.00032876,120]
[400478345,1767630847470,339.36360748,0.00032876,120]
[400478346,1767630848374,500.0,0.00032876,120]
[400478347,1767630848634,500.0,0.00032876,120]
[400478348,1767630848812,500.0,0.00032876,120]
[400478349,1767630849074,500.0,0.00032876,120]
[400478350,1767630849147,500.0,0.00032876,120]
[400478351,1767630849318,500.0,0.00032876,120]
[400478352,1767630849390,500.0,0.00032876,120]
[400478353,1767630849592,439.17886133,0.00032876,120]
[400478354,1767630853102,571.76774367,0.00032876,120]
[400478355,1767630854253,249.63156974,0.00032876,120]
[400478356,1767630854968,500.0,0.00032876,120]
[400478357,1767630855218,560.63250278,0.00032876,120]
[400478358,1767630856048,500.0,0.00032876,120]
[400478359,1767630856331,500.0,0.00032876,120]
[400478360,1767630856571,500.0,0.00032876,120]
[400478361,1767630856804,501.43707999,0.00032876,120]
[400478362,1767630857286,500.0,0.00032876,120]
[400478363,1767630857571,500.0,0.00032876,120]
[400478364,1767630857810,561.85213033,0.00032876,120]
[400478365,1767630857974,500.0,0.00032876,120]
[400478366,1767630858230,500.0,0.00032876,120]
[400478367,1767630858470,343.1863624,0.00032876,120]
[400478368,1767630860265,500.0,0.00032876,120]
[400478369,1767630860369,591.88911641,0.00032876,120]
[400478370,1767630863007,500.0,0.00032876,120]
[400478371,1767630863277,182.51932124,0.00032876,120]
[400478372,1767630863432,570.40957641,0.00032876,120]
[400478373,1767630866427,457.1003898,0.00032876,120]
[400478374,1767630868679,484.49014673,0.00032876,120]
[400478375,1767630868750,401.31261384,0.00032876,120]
[400478376,1767630870685,413.11906607,0.00032876,120]
[400478377,1767630875921,500.0,0.00032876,120]
[400478378,1767630876173,500.0,0.00032876,120]
[400478379,1767630876427,500.0,0.00032876,120]
[400478380,1767630876753,227.75785883,0.00032876,120]
[400478381,1767630877705,484.41364374,0.00032876,120]
[400478382,1767630878642,410.44824773,0.00032876,120]
[400478383,1767630879019,259.32634238,0.00032876,120]
[400478384,1767630879716,589.75640133,0.00032876,120]
[400478385,1767630888252,566.5565168,0.00032876,120]
[400478386,1767630891262,500.0,0.00032876,120]
[400478387,1767630891558,500.0,0.00032876,120]
[400478388,1767630892125,251.08,0.00032876,120]
[400478389,1767630893186,566.63937882,0.00032876,120]
[400478390,1767630893406,500.0,0.00032876,120]
[400478391,1767630893699,500.0,0.00032876,120]
[400478392,1767630893910,527.23960521,0.00032876,120]
[400478393,1767630894191,500.0,0.00032876,120]
[400478394,1767630894437,500.0,0.00032876,120]
[400478395,1767630894705,500.0,0.00032876,120]
[400478396,1767630894937,500.0,0.00032876,120]
[400478397,1767630895196,500.0,0.00032876,120]
[400478398,1767630895478,500.0,0.00032876,120]
[400478399,1767630895735,500.0,0.00032876,120]
[400478400,1767630895985,500.0,0.00032876,120]
[400478401,1767630896211,500.0,0.00032876,120]
[400478402,1767630896448,500.0,0.00032876,120]
[400478403,1767630896705,500.0,0.00032876,120]
[400478404,1767630896949,596.24996831,0.00032876,120]
[400478405,1767630897813,500.0,0.00032876,120]
[400478406,1767630898069,500.0,0.00032876,120]
[400478407,1767630898285,558.49456502,0.00032876,120]
[400478408,1767630898687,500.0,0.00032876,120]
[400478409,1767630898932,408.1506673,0.00032876,120]
[400478410,1767630899000,500.0,0.00032876,120]
[400478411,1767630899157,630.80173411,0.00032876,120]
[400478412,1767630899519,500.0,0.00032876,120]
[400478413,1767630899774,424.09754095,0.00032876,120]
[400478414,1767630900186,256.73687173,0.00032876,120]
[400478415,1767630901218,620.54815673,0.00032876,120]
[400478416,1767630904332,214.13638765,0.00032876,120]
[400478417,1767630905081,500.0,0.00032876,120]
[400478418,1767630905159,500.0,0.00032876,120]
[400478419,1767630905315,408.77238058,0.00032876,120]
[400478420,1767630905398,500.0,0.00032876,120]
[400478421,1767630905624,554.09675425,0.00032876,120]
[400478422,1767630908514,500.0,0.00032876,120]
[400478423,1767630908749,500.0,0.00032876,120]
[400478424,1767630908832,500.0,0.00032876,120]
[400478425,1767630909040,500.0,0.00032876,120]
[400478426,1767630909304,626.94497049,0.00032876,120]
[400478427,1767630909880,500.0,0.00032876,120]
[400478428,1767630910131,500.0,0.00032876,120]
[400478429,1767630910393,500.0,0.00032876,120]
[400478430,1767630910635,279.70255016,0.00032876,120]
[400478431,1767630911689,500.0,0.00032876,120]
[400478432,1767630911764,500.0,0.00032876,120]
[400478433,1767630911961,500.0,0.00032876,120]
[400478434,1767630912042,500.0,0.00032876,120]
[400478435,1767630912190,500.0,0.00032876,120]
[400478436,1767630912266,500.0,0.00032876,120]
[400478437,1767630912432,500.0,0.00032876,120]
[400478438,1767630912510,574.09734009,0.00032876,120]
[400478439,1767630912678,500.0,0.00032876,120]
[400478440,1767630912981,500.0,0.00032876,120]
[400478441,1767630913253,494.47740259,0.00032876,120]
[400478442,1767630915109,500.0,0.00032876,120]
[400478443,1767630915354,500.0,0.00032876,120]
[400478444,1767630915630,480.10735979,0.00032876,120]
[400478445,1767630915704,541.6001226,0.00032876,120]
[400478446,1767630917533,500.0,0.00032876,120]
[400478447,1767630917804,500.0,0.00032876,120]
[400478448,1767630918044,500.0,0.00032876,120]
[400478449,1767630918299,500.0,0.00032876,120]
[400478450,1767630918530,500.0,0.00032876,120]
[400478451,1767630918780,500.0,0.00032876,120]
[400478452,1767630919013,500.0,0.00032876,120]
[400478453,1767630919268,500.0,0.00032876,120]
[400478454,1767630919506,500.0,0.00032876,120]
[400478455,1767630919657,538.38604738,0.00032876,120]
[400478456,1767630919752,500.0,0.00032876,120]
[400478457,1767630920007,500.0,0.00032876,120]
[400478458,1767630920257,500.0,0.00032876,120]
[400478459,1767630920580,500.0,0.00032876,120]
[400478460,1767630920813,500.0,0.00032876,120]
[400478461,1767630920893,500.0,0.00032876,120]
[400478462,1767630921044,500.0,0.00032876,120]
[400478463,1767630921283,500.0,0.00032876,120]
[400478464,1767630921519,500.0,0.00032876,120]
[400478465,1767630921750,500.0,0.00032876,120]
[400478466,1767630921841,500.0,0.00032876,120]
[400478467,1767630921976,500.0,0.00032876,120]
[400478468,1767630922059,500.0,0.00032876,120]
[400478469,1767630922213,500.0,0.00032876,120]
[400478470,1767630922303,219.4742606,0.00032876,120]
[400478471,1767630922518,500.0,0.00032876,120]
[400478472,1767630922740,500.0,0.00032876,120]
[400478473,1767630922965,608.30197558,0.00032876,120]
[400478474,1767630923638,500.0,0.00032876,120]
[400478475,1767630923884,500.0,0.00032876,120]
[400478476,1767630924135,551.0253861,0.00032876,120]
[400478477,1767630924770,395.57109715,0.00032876,120]
[400478478,1767630928300,541.27883253,0.00032876,120]
[400478479,1767630929209,500.0,0.00032876,120]
[400478480,1767630929369,533.94294331,0.00032876,120]
[400478481,1767630929457,500.0,0.00032876,120]
[400478482,1767630929720,533.54044149,0.00032876,120]
[400478483,1767630929940,632.44590017,0.00032876,120]
[400478484,1767630931193,500.0,0.00032876,120]
[400478485,1767630931415,500.0,0.00032876,120]
[400478486,1767630931686,553.62475934,0.00032876,120]
[400478487,1767630931763,500.0,0.00032876,120]
[400478488,1767630931923,219.93346603,0.00032876,120]
[400478489,1767630932956,464.85648556,0.00032876,120]
[400478490,1767630933123,1040.19,0.00032876,120]
[400478491,1767630933355,1040.19,0.00032876,120]
[400478492,1767630933785,1040.19,0.00032876,120]
[400478493,1767630934178,1040.19,0.00032876,120]
[400478494,1767630934424,1040.19,0.00032876,120]
[400478495,1767630934665,1040.19,0.00032876,120]
[400478496,1767630934914,1040.19,0.00032876,120]
[400478497,1767630935024,500.0,0.00032876,120]
[400478498,1767630935187,1040.19,0.00032876,120]
[400478499,1767630935259,500.0,0.00032876,120]
[400478500,1767630935332,500.0,0.00032876,120]
[400478501,1767630935455,500.0,0.00032876,120]
[400478502,1767630935527,500.0,0.00032876,120]
[400478503,1767630935601,1040.19,0.00032876,120]
[400478504,1767630935714,500.0,0.00032876,120]
[400478505,1767630935789,1040.19,0.00032876,120]
[400478506,1767630935881,434.94136008,0.00032876,120]
[400478507,1767630935978,245.14689698,0.00032876,120]
[400478508,1767630936052,1040.19,0.00032876,120]
[400478509,1767630936251,1040.19,0.00032876,120]
[400478510,1767630936517,1040.19,0.00032876,120]
[400478511,1767630936766,1040.19,0.00032876,120]
[400478512,1767630936988,1040.19,0.00032876,120]
[400478513,1767630937218,1040.19,0.00032876,120]
[400478514,1767630937296,578.30985799,0.00032876,120]
[400478515,1767630937444,1040.19,0.00032876,120]
[400478516,1767630937697,1040.19,0.00032876,120]
[400478517,1767630937933,1040.19,0.00032876,120]
[400478518,1767630938093,212.6224487,0.00032876,120]
[400478519,1767630938173,1040.19,0.00032876,120]
[400478520,1767630938413,1040.19,0.00032876,120]
[400478521,1767630938645,1040.19,0.00032876,120]
[400478522,1767630938880,1040.19,0.00032876,120]
[400478523,1767630939172,1040.35846259,0.00032876,120]
[400478524,1767630939659,215.08856264,0.00032876,120]
[400478525,1767630940174,500.0,0.00032876,120]
[400478526,1767630940458,157.25161395,0.00032876,120]
[400478527,1767630941314,500.0,0.00032876,120]
[400478528,1767630941549,500.0,0.00032876,120]
[400478529,1767630941783,199.77520479,0.00032876,120]
[400478530,1767630943984,604.31982971,0.00032876,120]
[400478534,1767630945004,530.39305896,0.00032876,120]
[400478536,1767630945304,500.0,0.00032876,120]
[400478538,1767630945534,500.0,0.00032876,120]
[400478540,1767630945795,560.72302556,0.00032876,120]
[400478559,1767630951069,500.0,0.00032876,120]
[400478560,1767630952065,425.84053647,0.00032876,120]
[400478561,1767630952140,500.0,0.00032876,120]
[400478562,1767630952342,500.0,0.00032876,120]
[400478563,1767630952608,500.0,0.00032876,120]
[400478564,1767630952854,289.60745445,0.00032876,120]
[400478565,1767630953078,500.0,0.00032876,120]
[400478566,1767630953325,341.50105365,0.00032876,120]
[400478567,1767630953871,500.0,0.00032876,120]
[400478568,1767630954379,500.0,0.00032876,120]
[400478569,1767630954471,517.73856313,0.00032876,120]
[400478570,1767630955352,528.60412689,0.00032876,120]
[400478571,1767630956302,500.0,0.00032876,120]
[400478572,1767630956501,500.0,0.00032876,120]
[400478573,1767630956574,452.29619171,0.00032876,120]
[400478574,1767630956734,500.0,0.00032876,120]
[400478575,1767630956975,500.0,0.00032876,120]
[400478576,1767630957226,549.9275165,0.00032876,120]
[400478577,1767630958548,500.0,0.00032876,120]
[400478578,1767630958828,500.0,0.00032876,120]
[400478579,1767630959067,450.0,0.00032876,120]
[400478580,1767630959156,498.84269917,0.00032876,120]
[400478581,1767630959230,500.0,0.00032876,120]
[400478582,1767630959355,500.0,0.00032876,120]
[400478583,1767630959464,500.0,0.00032876,120]
[400478584,1767630959598,500.0,0.00032876,120]
[400478585,1767630959707,500.0,0.00032876,120]
[400478586,1767630959870,500.0,0.00032876,120]
[400478587,1767630959956,509.0056884,0.00032876,120]
[400478588,1767630960138,639.08972078,0.00032876,120]
[400478589,1767630960414,500.0,0.00032876,120]
[400478590,1767630960669,500.0,0.00032876,120]
[400478591,1767630960920,292.26039767,0.00032876,120]
[400478592,1767630961962,500.0,0.00032876,120]
[400478593,1767630962447,500.0,0.00032876,120]
[400478594,1767630962524,535.42736389,0.00032876,120]
[400478595,1767630962616,500.0,0.00032876,120]
[400478596,1767630962719,336.74876462,0.00032876,120]
[400478597,1767630964694,475.5623742,0.00032876,120]
[400478598,1767630965005,500.0,0.00032876,120]
[400478599,1767630965235,500.0,0.00032876,120]
[400478600,1767630965461,500.0,0.00032876,120]
[400478601,1767630965663,500.0,0.00032876,120]
[400478602,1767630965737,623.4763848,0.00032876,120]
[400478603,1767630965918,500.0,0.00032876,120]
[400478604,1767630966304,534.13303151,0.00032876,120]
[400478605,1767630966384,500.0,0.00032876,120]
[400478606,1767630966750,500.0,0.00032876,120]
[400478607,1767630967710,500.0,0.00032876,120]
[400478608,1767630967797,500.0,0.00032876,120]
[400478609,1767630967974,500.0,0.00032876,120]
[400478610,1767630968055,437.43834073,0.00032876,120]
[400478611,1767630968211,621.32268011,0.00032876,120]
[400478612,1767630970002,500.0,0.00032876,120]
[400478613,1767630970245,500.0,0.00032876,120]
[400478614,1767630970479,500.0,0.00032876,120]
[400478615,1767630970728,500.0,0.00032876,120]
[400478616,1767630970979,500.0,0.00032876,120]
[400478617,1767630971220,500.0,0.00032876,120]
[400478618,1767630971463,500.0,0.00032876,120]
[400478619,1767630971708,500.0,0.00032876,120]
[400478620,1767630971968,500.0,0.00032876,120]
[400478621,1767630972203,222.075,0.00032876,120]
[400478622,1767630973327,485.03026535,0.00032876,120]
[400478623,1767630974005,316.2819804,0.00032876,120]
[400478624,1767630977595,548.7381115,0.00032876,120]
[400478625,1767630981422,500.0,0.00032876,120]
[400478626,1767630981701,500.0,0.00032876,120]
[400478627,1767630981932,204.67477298,0.00032876,120]
[400478628,1767630983592,279.62238499,0.00032876,120]
[400478629,1767630985076,500.0,0.00032876,120]
[400478630,1767630985160,504.75468002,0.00032876,120]
[400478631,1767630985845,500.0,0.00032876,120]
[400478632,1767630986170,500.0,0.00032876,120]
[400478633,1767630986486,500.0,0.00032876,120]
[400478634,1767630986756,500.0,0.00032876,120]
[400478635,1767630986983,450.1,0.00032876,120]
[400478636,1767630989530,500.0,0.00032876,120]
[400478637,1767630989672,500.0,0.00032876,120]
[400478638,1767630989795,253.2983549,0.00032876,120]
[400478639,1767630989937,500.0,0.00032876,120]
[400478640,1767630990176,500.0,0.00032876,120]
[400478641,1767630991979,452.28888507,0.00032876,120]
[400478642,1767630993027,500.0,0.00032876,120]
[400478643,1767630993300,500.0,0.00032876,120]
[400478644,1767630993535,500.0,0.00032876,120]
[400478645,1767630993747,342.42007209,0.00032876,120]
[400478646,1767631001702,1033.4,0.00016501,2]
[400478647,1767631003110,500.0,0.00032876,120]
[400478648,1767631003353,500.0,0.00032876,120]
[400478649,1767631003835,553.6260422,0.00032876,120]
[400478650,1767631003984,173.72937622,0.00032876,120]
[400478651,1767631004067,500.0,0.00032876,120]
[400478652,1767631004267,500.0,0.00032876,120]
[400478653,1767631004515,558.24215681,0.00032876,120]
[400478654,1767631008496,500.0,0.00032876,120]
[400478655,1767631008839,500.0,0.00032876,120]
[400478656,1767631009070,324.43905964,0.00032876,120]
[400478657,1767631011334,500.0,0.00032876,120]
[400478658,1767631014467,170.13661187,0.00032876,120]
[400478659,1767631023966,307.07677427,0.00032876,120]
[400478660,1767631027301,500.0,0.00032876,120]
[400478661,1767631027537,500.0,0.00032876,120]
[400478662,1767631027792,500.0,0.00032876,120]
[400478663,1767631028023,500.0,0.00032876,120]
[400478664,1767631028264,500.0,0.00032876,120]
[400478665,1767631028551,500.0,0.00032876,120]
[400478666,1767631028818,220.87313254,0.00032876,120]
[400478667,1767631029373,411.34615958,0.00032876,120]
[400478668,1767631032703,500.0,0.00032876,120]
[400478669,1767631032957,477.88484108,0.00032876,120]
[400478670,1767631033781,500.0,0.00032876,120]
[400478671,1767631034022,500.0,0.00032876,120]
[400478672,1767631034258,500.0,0.00032876,120]
[400478673,1767631034491,500.0,0.00032876,120]
[400478674,1767631034766,500.0,0.00032876,120]
[400478675,1767631035014,569.22848965,0.00032876,120]
[400478676,1767631036436,521.99180348,0.00032876,120]
[400478677,1767631047251,308.53413576,0.00032876,120]
[400478678,1767631049339,500.0,0.00032876,120]
[400478679,1767631049592,500.0,0.00032876,120]
[400478680,1767631049822,531.04029488,0.00032876,120]
[400478681,1767631051502,500.0,0.00032876,120]
[400478682,1767631051770,500.0,0.00032876,120]
[400478683,1767631052179,220.07656934,0.00032876,120]
[400478684,1767631052250,500.0,0.00032876,120]
[400478685,1767631052451,500.0,0.00032876,120]
[400478686,1767631052680,500.0,0.00032876,120]
[400478687,1767631052912,500.0,0.00032876,120]
[400478688,1767631053529,500.0,0.00032876,120]
[400478689,1767631053767,310.64948905,0.00032876,120]
[400478690,1767631063426,500.0,0.00032876,120]
[400478691,1767631063668,500.0,0.00032876,120]
[400478692,1767631063902,325.83772074,0.00032876,120]
[400478693,1767631063971,150.9692807,0.00032876,120]
[400478694,1767631067860,649.61596565,0.00032876,120]